fUSD/lending_fUSD_20240803
["ID","MTS","AMOUNT","RATE_DAILY","PERIOD"]
[334023548,1722684640833,-500.0,0.00017808,2]
[334023549,1722684640843,-566.59348109,0.00017808,2]
[334023550,1722684640853,-192.12774968,0.0001788,2]
[334023551,1722684640863,-23408.70528311,0.0001788,2]
[334023552,1722684640872,-371.74166536,0.00018,2]
[334023553,1722684640882,-366.1876,0.00018082,2]
[334023554,1722684640891,-182.76098264,0.0001822,2]
[334023555,1722684640901,-4854.7232,0.00018373,2]
[334023556,1722684640910,-966.8388,0.00018373,2]
[334023557,1722684640920,-2910.5872,0.00018373,2]
[334023558,1722684640929,-152.27,0.00018463,2]
[334023559,1722684640939,-152.27,0.00018463,2]
[334023560,1722684640948,-173.54367642,0.0001847,2]
[334023561,1722684640958,-500.0,0.00018472,2]
[334023562,1722684640967,-500.0,0.00018472,2]
[334023563,1722684640977,-500.0,0.00018472,2]
[334023564,1722684640987,-500.0,0.00018472,2]
[334023565,1722684640996,-500.0,0.00018472,2]
[334023566,1722684641006,-543.45,0.00018472,2]
[334023567,1722684641016,-1844.61,0.00018472,2]
[334023568,1722684641025,-500.0,0.00018472,2]
[334023569,1722684641035,-500.0,0.00018472,2]
[334023570,1722684641046,-100000.0,0.00018473,2]
[334023571,1722684641055,-198653.05336746,0.00018473,2]
[334023572,1722684641068,-476.45777715,0.00018473,2]
[334023573,1722684641079,-6707.20145331,0.00018473,2]
[334023583,1722684642867,-3232.9037723,0.00018473,2]
[334023584,1722684643007,-12921.83592978,0.00018473,2]
[334023585,1722684643017,-500.0,0.00018473,2]
[334023586,1722684643026,-5764.96407022,0.00018473,2]
[334023617,1722684645950,-2655.18565977,0.00018473,2]
[334023618,1722684646129,-3381.64263769,0.00018473,2]
[334023638,1722684658913,511.86220252,0.00010196,2]
[334023639,1722684664230,412.76630026,0.00010196,2]
[334023640,1722684664273,31.20484812,0.00010196,2]
[334023641,1722684788964,-201.36831817,0.00010196,2]
[334023642,1722684788990,-170.34699346,0.00010196,2]
[334023643,1722684789013,-278.03390214,0.00010196,2]
[334023644,1722684789040,-1350.25078623,0.00010196,2]
[334023669,1722685831834,-150.0,0.00010164,2]
[334023672,1722685831844,-300.0,0.00010195,2]
[334023674,1722685831854,-1703.60167299,0.00010196,2]
[334023676,1722685831865,-1325.14524,0.00010196,2]
[334023678,1722685831876,-3194.93990006,0.00010196,2]
[334023679,1722685831886,-181.66385154,0.00010196,2]
[334023680,1722685831895,-449.14284782,0.00010196,2]
[334023681,1722685831905,-1049.72746869,0.00010196,2]
[334023682,1722685831914,-209.54219002,0.00010196,2]
[334023683,1722685831923,-6709.13776349,0.00010196,2]
[334023684,1722685831934,-3103.1,0.00010196,2]
[334023685,1722685831947,-2331.32555382,0.00010196,2]
[334023686,1722685831959,-424.51363552,0.00010196,2]
[334023687,1722685831970,-12985.35322404,0.00010196,2]
[334023688,1722685831981,-9322.0569,0.00010196,2]
[334023689,1722685831992,-945.20416181,0.00010196,2]
[334023690,1722685832003,-904.96532417,0.00010196,2]
[334023691,1722685832014,-357.46371413,0.00010196,2]
[334023692,1722685832053,-763.89982107,0.00010196,2]
[334023693,1722685832064,-906.95142544,0.00010196,2]
[334023694,1722685832075,-700.0,0.00010196,2]
[334023695,1722685832086,-536.83568415,0.00010196,2]
[334023696,1722685832107,-711.01118688,0.00010196,2]
[334023697,1722685832118,-2527.91072361,0.00010196,2]
[334023698,1722685832129,-166.24132472,0.00010196,2]
[334023699,1722685832138,-155.0,0.00010196,2]
[334023700,1722685832147,-248.3920413,0.00010196,2]
[334023701,1722685832156,-332.75719922,0.00010196,2]
[334023703,1722685832166,-230.87550765,0.00010196,2]
[334023704,1722685832175,-227.60153513,0.00010196,2]
[334023705,1722685832185,-796.0177577,0.00010196,2]
[334023706,1722685832194,-485.31544336,0.00010196,2]
[334023707,1722685832203,-411.49590119,0.00010196,2]
[334023708,1722685832212,-155.06177506,0.00010196,2]
[334023709,1722685832221,-291.29119994,0.00010196,2]
[334023710,1722685832230,-299.71268725,0.00010196,2]
[334023711,1722685832239,-167.73195444,0.00011105,2]
[334023712,1722685832249,-420.0,0.00011212,2]
[334023713,1722685832258,-587.0,0.00012331,2]
[334023714,1722685832267,-500.0,0.00013449,2]
[334023715,1722685832276,-500.0,0.00013458,2]
[334023716,1722685832284,-500.0,0.00013467,2]
[334023717,1722685832294,-500.0,0.00013476,2]
[334023718,1722685832302,-500.0,0.00013485,2]
[334023719,1722685832314,-500.0,0.00013493,2]
[334023720,1722685832323,-500.0,0.00013502,2]
[334023721,1722685832332,-500.0,0.00013511,2]
[334023722,1722685832341,-500.0,0.0001352,2]
[334023723,1722685832349,-500.0,0.00013529,2]
[334023724,1722685832358,-600.0,0.00013537,2]
[334023725,1722685832367,-500.0,0.00013537,2]
[334023726,1722685832376,-823.0,0.00013562,2]
[334023727,1722685832385,-1152.0,0.00014915,2]
[334023728,1722685832394,-454.71,0.00015451,2]
[334023729,1722685832402,-316.0,0.00016403,2]
[334023730,1722685832411,-162.42,0.00016809,2]
[334023731,1722685832419,-1000.0,0.00017114,2]
[334023732,1722685832427,-250.0,0.0001741,2]
[334023733,1722685832436,-250.0,0.00017681,2]
[334023734,1722685832445,-454.71,0.00017715,2]
[334023735,1722685832455,-299.99,0.00017808,4]
[334023736,1722685832463,-557.23,0.00018001,2]
[334023737,1722685832472,-153.418,0.00018001,2]
[334023738,1722685832481,-1892.0,0.00018001,2]
[334023739,1722685832489,-3302.751,0.00018001,2]
[334023740,1722685832497,-150.0,0.00018001,2]
[334023741,1722685832506,-717.55184,0.00018473,2]
[334023742,1722685832514,-749.50094499,0.00018499,2]
[334023743,1722685832523,-268.03,0.00018596,2]
[334023744,1722685832531,-826.0,0.000186,2]
[334023745,1722685832540,-1648.2538,0.0001892,2]
[334023746,1722685832549,-318.07814139,0.00019045,2]
[334023747,1722685832557,-996.22,0.000191,2]
[334023748,1722685832566,-319.38,0.000191,2]
[334023749,1722685832577,-155.0,0.0001924,2]
[334023750,1722685832590,-1000.0,0.00019254,2]
[334023751,1722685832598,-165.81,0.00019383,2]
[334023752,1722685832606,-2000.0,0.000194,2]
[334023753,1722685832615,-155.900231,0.000194,2]
[334023754,1722685832623,-17115.43605267,0.00019725,2]
[334023755,1722685832632,-500.0,0.0001984,2]
[334023756,1722685832641,-454.71,0.00019979,2]
[334023757,1722685832650,-1282.81154081,0.0002,2]
[334023758,1722685832658,-155.0,0.0002,2]
[334023759,1722685832666,-160.66217965,0.0002,2]
[334023760,1722685832675,-6288.50435063,0.0002,2]
[334023761,1722685832687,-1100.0,0.00020013,2]
[334023762,1722685832696,-13587.4363,0.00020027,2]
[334023763,1722685832705,-304.8591,0.00020027,2]
[334023764,1722685832713,-1100.0,0.00020046,2]
[334023765,1722685832724,-1100.0,0.00020058,2]
[334023766,1722685832736,-196.65129831,0.00020062,2]
[334023767,1722685832745,-1226.61225795,0.00020062,2]
[334023768,1722685832754,-1000.0,0.00020098,2]
[334023769,1722685832765,-7334.04,0.000201,2]
[334023770,1722685832775,-500.0,0.00020108,2]
[334023771,1722685832785,-1100.0,0.00020109,2]
[334023772,1722685832794,-366.9755387,0.00020109,2]
[334023773,1722685832803,-243601.0167,0.00020127,2]
[334023774,1722685832812,-151.0,0.00020162,2]
[334023775,1722685832825,-500.0,0.00020163,2]
[334023776,1722685832834,-2023.34906436,0.000202,2]
[334023777,1722685832843,-500.0,0.00020203,2]
[334023778,1722685832853,-500.0,0.00020229,2]
[334023779,1722685832862,-500.0,0.00020279,2]
[334023780,1722685832871,-2000.0,0.000204,2]
[334023781,1722685832880,-500.0,0.00020403,2]
[334023782,1722685832890,-1100.0,0.00020414,2]
[334023783,1722685832899,-500.0,0.00020444,2]
[334023784,1722685832909,-261.9,0.00020447,2]
[334023785,1722685832918,-500.0,0.00020456,2]
[334023786,1722685832927,-1100.0,0.00020472,2]
[334023787,1722685832936,-500.0,0.00020491,2]
[334023788,1722685832946,-500.0,0.00020499,2]
[334023789,1722685832956,-500.0,0.00020534,2]
[334023790,1722685832965,-996.22,0.00020545,2]
[334023791,1722685832974,-1226.61225789,0.000206,2]
[334023792,1722685832984,-500.0,0.00020639,2]
[334023793,1722685832993,-500.0,0.00020682,2]
[334023794,1722685833003,-319.38,0.0002076,2]
[334023795,1722685833013,-500.0,0.00020767,2]
[334023796,1722685833022,-500.0,0.00020783,2]
[334023797,1722685833033,-500.0,0.00020821,2]
[334023798,1722685833042,-293.51266603,0.00020822,2]
[334023799,1722685833051,-500.0,0.00020846,2]
[334023800,1722685833062,-500.0,0.0002089,2]
[334023801,1722685833072,-500.0,0.00020918,2]
[334023802,1722685833092,-268.03,0.0002092,2]
[334023803,1722685833102,-1100.0,0.00020927,2]
[334023804,1722685833111,-553.98134915,0.00020938,2]
[334023805,1722685833121,-500.0,0.00020992,2]
[334023806,1722685833130,-500.0,0.00021003,2]
[334023807,1722685833140,-500.0,0.00021076,2]
[334023808,1722685833149,-500.0,0.00021095,2]
[334023809,1722685833159,-500.0,0.00021111,2]
[334023810,1722685833168,-500.0,0.00021124,2]
[334023811,1722685833178,-1226.61225789,0.00021137,2]
[334023812,1722685833188,-500.0,0.00021208,2]
[334023813,1722685833197,-1100.0,0.00021213,2]
[334023814,1722685833207,-500.0,0.00021267,2]
[334023815,1722685833216,-500.0,0.00021292,2]
[334023816,1722685833226,-500.0,0.00021303,2]
[334023817,1722685833235,-500.0,0.00021306,2]
[334023818,1722685833244,-500.0,0.00021319,2]
[334023819,1722685833254,-1000.0,0.00021393,2]
[334023820,1722685833263,-2000.0,0.000214,2]
[334023821,1722685833273,-500.0,0.00021405,2]
[334023822,1722685833282,-500.0,0.00021447,2]
[334023823,1722685833292,-616.77536428,0.00021454,2]
[334023824,1722685833301,-1100.0,0.0002146,2]
[334023825,1722685833310,-682.13335158,0.00021487,2]
[334023826,1722685833319,-500.0,0.00021531,2]
[334023827,1722685833331,-500.0,0.00021558,2]
[334023828,1722685833340,-500.0,0.00021589,2]
[334023829,1722685833349,-1000.0,0.00021642,2]
[334023830,1722685833359,-500.0,0.00021642,2]
[334023831,1722685833368,-200.0,0.00021642,2]
[334023832,1722685833377,-300.53,0.00021646,2]
[334023833,1722685833386,-150.0,0.00021646,2]
[334023834,1722685833396,-1226.61225789,0.00021675,2]
[334023835,1722685833406,-500.0,0.00021776,2]
[334023836,1722685833416,-200.0,0.000219,2]
[334023837,1722685833425,-2000.0,0.000219,2]
[334023838,1722685833435,-500.0,0.00021902,2]
[334023839,1722685833444,-2000.0,0.00021917,2]
[334023840,1722685833453,-150.0,0.00021918,2]
[334023841,1722685833463,-1769.67,0.00021918,2]
[334023842,1722685833473,-500.0,0.00021918,2]
[334023843,1722685833482,-500.0,0.00021918,2]
[334023844,1722685833491,-500.0,0.00021918,2]
[334023845,1722685833500,-500.0,0.00021918,2]
[334023846,1722685833509,-500.0,0.00021918,2]
[334023847,1722685833519,-500.0,0.00021918,2]
[334023848,1722685833528,-150.0,0.00021918,2]
[334023849,1722685833537,-150.0,0.00021918,2]
[334023850,1722685833546,-150.0,0.00021918,2]
[334023851,1722685833555,-150.0,0.00021918,2]
[334023852,1722685833565,-150.0,0.00021918,2]
[334023853,1722685833576,-150.0,0.00021918,2]
[334023854,1722685833586,-150.0,0.00021918,2]
[334023855,1722685833595,-150.0,0.00021918,2]
[334023856,1722685833605,-150.0,0.00021918,2]
[334023857,1722685833614,-150.0,0.00021918,2]
[334023858,1722685833624,-150.0,0.00021918,2]
[334023859,1722685833634,-150.0,0.00021918,2]
[334023860,1722685833643,-150.0,0.00021918,2]
[334023861,1722685833653,-150.0,0.00021918,2]
[334023862,1722685833662,-150.0,0.00021918,2]
[334023863,1722685833671,-150.0,0.00021918,2]
[334023864,1722685833681,-150.0,0.00021918,2]
[334023865,1722685833694,-150.0,0.00021918,2]
[334023866,1722685833703,-150.0,0.00021918,2]
[334023867,1722685833713,-150.0,0.00021918,2]
[334023868,1722685833723,-150.0,0.00021918,2]
[334023869,1722685833733,-150.0,0.00021918,2]
[334023870,1722685833743,-150.0,0.00021918,2]
[334023871,1722685833753,-500.0,0.00021948,2]
[334023872,1722685833764,-500.0,0.00021982,2]
[334023873,1722685833775,-996.22,0.0002199,2]
[334023874,1722685833785,-500.0,0.00022189,2]
[334023875,1722685833794,-1177.55931087,0.00022191,2]
[334023876,1722685833804,-1226.61225789,0.00022212,2]
[334023877,1722685833814,-1100.0,0.00022231,2]
[334023878,1722685833825,-454.71,0.00022243,2]
[334023879,1722685833837,-500.0,0.0002229,2]
[334023880,1722685833847,-500.0,0.00022312,2]
[334023881,1722685833857,-500.0,0.00022354,2]
[334023882,1722685833867,-2000.0,0.000224,2]
[334023883,1722685833876,-500.0,0.00022412,2]
[334023884,1722685833886,-601.512489,0.0002242,2]
[334023885,1722685833896,-500.0,0.00022449,2]
[334023886,1722685833905,-530.42,0.00022468,2]
[334023887,1722685833915,-151.28,0.00022468,2]
[334023888,1722685833924,-196.6512983,0.00022481,2]
[334023889,1722685833934,-150.0,0.00022495,2]
[334023890,1722685833945,-500.0,0.00022537,2]
[334023891,1722685833955,-500.0,0.00022561,2]
[334023892,1722685833965,-500.0,0.00022669,2]
[334023893,1722685833974,-500.0,0.00022678,2]
[334023894,1722685833984,-1226.61225789,0.0002275,2]
[334023895,1722685833994,-500.0,0.00022763,2]
[334023896,1722685834003,-500.0,0.0002281,2]
[334023897,1722685834013,-500.0,0.00022819,2]
[334023898,1722685834023,-500.0,0.00022878,2]
[334023899,1722685834033,-500.0,0.00022912,2]
[334023900,1722685834043,-500.0,0.00022993,2]
[334023901,1722685834052,-500.0,0.00022994,2]
[334023902,1722685834062,-500.0,0.00022995,2]
[334023903,1722685834072,-202.516,0.00023,2]
[334023904,1722685834084,-500.0,0.00023004,2]
[334023905,1722685834095,-500.0,0.00023063,2]
[334023906,1722685834105,-150.0,0.00023071,2]
[334023907,1722685834114,-1100.0,0.00023095,2]
[334023908,1722685834124,-508.59006499,0.00023102,2]
[334023909,1722685834134,-1100.0,0.00023126,2]
[334023910,1722685834144,-500.0,0.00023156,2]
[334023911,1722685834154,-500.0,0.0002316,2]
[334023912,1722685834163,-180.0,0.00023205,2]
[334023913,1722685834174,-500.0,0.00023234,2]
[334023914,1722685834183,-268.03,0.00023245,2]
[334023915,1722685834193,-1226.61225789,0.00023287,2]
[334023916,1722685834203,-425.91,0.0002337,2]
[334023917,1722685834213,-150.0,0.0002337,2]
[334023918,1722685834223,-2000.0,0.000234,2]
[334023919,1722685834233,-996.22,0.00023435,2]
[334023920,1722685834243,-155.0,0.00023451,2]
[334023921,1722685834253,-500.0,0.00023469,2]
[334023922,1722685834263,-717.55184,0.00023473,2]
[334023923,1722685834272,-500.0,0.00023486,2]
[334023924,1722685834283,-1000.0,0.00023532,2]
[334023925,1722685834294,-500.0,0.00023535,2]
[334023926,1722685834304,-3704.81131863,0.0002354,2]
[334023927,1722685834314,-500.0,0.0002359,2]
[334023928,1722685834323,-326.0,0.000236,2]
[334023929,1722685834333,-768.0,0.000236,2]
[334023930,1722685834342,-495.2858993,0.000236,2]
[334023931,1722685834353,-150.0,0.00023648,2]
[334023932,1722685834363,-500.0,0.00023662,2]
[334023933,1722685834374,-500.0,0.00023665,2]
[334023934,1722685834384,-500.0,0.00023793,2]
[334023935,1722685834592,-1226.61225789,0.00023825,2]
[334023936,1722685834602,-678.97718957,0.00023845,2]
[334023937,1722685834612,-810.0,0.00023885,2]
[334023938,1722685834622,-500.0,0.00023886,2]
[334023939,1722685834632,-200.0,0.00023886,2]
[334023940,1722685834642,-500.0,0.00023896,2]
[334023941,1722685834652,-500.0,0.00023942,2]
[334023942,1722685834662,-500.0,0.00023944,2]
[334023943,1722685834672,-500.0,0.00023945,2]
[334023944,1722685834682,-500.0,0.00023966,2]
[334023945,1722685834695,-281.0,0.00024,2]
[334023946,1722685834705,-320.0,0.00024,2]
[334023947,1722685834714,-192.0,0.00024,7]
[334023948,1722685834725,-1615.70473359,0.00024,10]
[334023949,1722685834735,-500.0,0.00024008,2]
[334023950,1722685834745,-500.0,0.00024014,2]
[334023951,1722685834754,-162.0994143,0.00024058,2]
[334023952,1722685834765,-2500.0,0.00024075,2]
[334023953,1722685834776,-179.2002619,0.00024076,2]
[334023954,1722685834786,-5000.0,0.00024083,2]
[334023955,1722685834795,-1099.2640678,0.00024083,2]
[334023956,1722685834805,-804.459417,0.00024093,2]
[334023957,1722685834814,-2138.5373805,0.00024093,2]
[334023958,1722685834825,-188.87,0.00024099,2]
[334023959,1722685834835,-2402.24,0.00024109,4]
[334023960,1722685834845,-500.0,0.00024121,2]
[334023961,1722685834855,-2500.0,0.00024147,2]
[334023962,1722685834865,-5000.0,0.00024159,2]
[334023963,1722685834875,-173.0,0.00024164,2]
[334023964,1722685834885,-5000.0,0.00024172,2]
[334023965,1722685834895,-5000.0,0.00024194,2]
[334023966,1722685834905,-397.4111556,0.0002421,2]
[334023967,1722685834915,-5000.0,0.00024216,2]
[334023968,1722685834925,-5000.0,0.00024217,2]
[334023969,1722685834935,-150.0,0.00024225,2]
[334023970,1722685834945,-656.6558093,0.00024225,2]
[334023971,1722685834954,-165.81,0.00024229,2]
[334023972,1722685834964,-5000.0,0.00024239,2]
[334023973,1722685834974,-150.0,0.00024246,120]
[334023974,1722685834983,-1218.40295062,0.0002425,2]
[334023975,1722685834993,-2500.0,0.00024255,2]
[334023976,1722685835002,-938.0,0.00024259,2]
[334023977,1722685835011,-3866.0,0.00024276,2]
[334023978,1722685835021,-500.0,0.00024282,2]
[334023979,1722685835030,-188.87,0.0002429,2]
[334023980,1722685835040,-2500.0,0.00024291,2]
[334023981,1722685835049,-150.0,0.00024299,10]
[334023982,1722685835059,-150.0,0.00024299,10]
[334023983,1722685835068,-150.0,0.00024299,10]
[334023984,1722685835079,-150.0,0.00024299,10]
[334023985,1722685835089,-150.0,0.00024299,10]
[334023986,1722685835099,-150.0,0.00024299,10]
[334023987,1722685835108,-150.0,0.00024299,10]
[334023988,1722685835118,-150.0,0.00024299,10]
[334023989,1722685835128,-150.0,0.00024299,10]
[334023990,1722685835139,-150.0,0.00024299,10]
[334023991,1722685835148,-150.0,0.00024299,10]
[334023992,1722685835158,-150.0,0.00024299,10]
[334023993,1722685835168,-150.0,0.00024299,10]
[334023994,1722685835178,-150.0,0.00024299,10]
[334023995,1722685835187,-150.0,0.00024299,10]
[334023996,1722685835196,-150.0,0.00024299,10]
[334023997,1722685835206,-150.0,0.00024299,10]
[334023998,1722685835216,-150.0,0.00024299,10]
[334023999,1722685835225,-150.0,0.00024299,10]
[334024000,1722685835235,-150.0,0.00024299,10]
[334024001,1722685835244,-150.0,0.00024299,10]
[334024002,1722685835254,-50000.0,0.000243,2]
[334024003,1722685835264,-5000.0,0.00024305,2]
[334024004,1722685835274,-1100.0,0.00024307,2]
[334024005,1722685835284,-10000.0,0.00024307,2]
[334024006,1722685835294,-5000.0,0.00024317,2]
[334024007,1722685835303,-162.0994143,0.00024339,2]
[334024008,1722685835313,-500.0,0.0002436,2]
[334024009,1722685835323,-1226.61225789,0.00024362,2]
[334024010,1722685835333,-500.0,0.00024367,2]
[334024011,1722685835343,-150.0,0.00024376,120]
[334024012,1722685835353,-3000.0,0.0002438,5]
[334024013,1722685835363,-5000.0,0.00024382,2]
[334024014,1722685835372,-2402.24,0.00024383,4]
[334024015,1722685835382,-989.3,0.000244,2]
[334024016,1722685835392,-1000.0,0.00024418,2]
[334024017,1722685835401,-333.76898455,0.0002442,2]
[334024018,1722685835410,-2500.0,0.00024447,2]
[334024019,1722685835420,-3000.0,0.00024463,7]
[334024020,1722685835430,-2500.0,0.00024477,2]
[334024021,1722685835440,-500.0,0.00024491,2]
[334024022,1722685835450,-454.71,0.00024506,2]
[334024023,1722685835459,-938.0,0.00024509,2]
[334024024,1722685835469,-2500.0,0.00024534,2]
[334024025,1722685835478,-2500.0,0.00024539,2]
[334024026,1722685835487,-500.0,0.00024547,2]
[334024027,1722685835496,-1390.849,0.00024557,2]
[334024028,1722685835507,-858.583,0.00024557,2]
[334024029,1722685835516,-434.91592401,0.0002458,7]
[334024030,1722685835525,-188.87,0.00024584,2]
[334024031,1722685835534,-500.0,0.00024594,2]
[334024032,1722685835544,-500.0,0.00024619,2]
[334024033,1722685835553,-162.0994143,0.00024619,2]
[334024034,1722685835563,-500.0,0.00024624,2]
[334024035,1722685835572,-153.68776238,0.00024627,2]
[334024036,1722685835582,-500.0,0.00024629,2]
[334024037,1722685835592,-5000.0,0.00024637,2]
[334024038,1722685835601,-992.1496318,0.0002464,2]
[334024039,1722685835611,-2637.4842905,0.0002464,2]
[334024040,1722685835620,-179.2002619,0.0002464,2]
[334024041,1722685835629,-500.0,0.00024644,2]
[334024042,1722685835639,-188.87,0.00024648,2]
[334024043,1722685835647,-173.54367642,0.00024654,2]
[334024044,1722685835657,-150.0,0.00024656,10]
[334024045,1722685835667,-150.0,0.00024656,10]
[334024046,1722685835676,-150.0,0.00024656,10]
[334024047,1722685835690,-150.0,0.00024656,10]
[334024048,1722685835699,-150.0,0.00024656,10]
[334024049,1722685835708,-150.0,0.00024656,10]
[334024050,1722685835717,-150.0,0.00024656,10]
[334024051,1722685835727,-150.0,0.00024656,10]
[334024052,1722685835735,-150.0,0.00024656,10]
[334024053,1722685835745,-150.0,0.00024656,10]
[334024054,1722685835754,-150.0,0.00024656,10]
[334024055,1722685835765,-150.0,0.00024656,10]
[334024056,1722685835775,-150.0,0.00024656,10]
[334024057,1722685835784,-150.0,0.00024656,10]
[334024058,1722685835794,-150.0,0.00024656,10]
[334024059,1722685835803,-150.0,0.00024656,10]
[334024060,1722685835812,-150.0,0.00024656,10]
[334024061,1722685835822,-150.0,0.00024656,10]
[334024062,1722685835832,-150.0,0.00024656,10]
[334024063,1722685835841,-150.0,0.00024656,10]
[334024064,1722685835851,-150.0,0.00024656,10]
[334024065,1722685835861,-150.0,0.00024656,10]
[334024066,1722685835870,-150.0,0.00024656,10]
[334024067,1722685835879,-150.0,0.00024656,10]
[334024068,1722685835888,-150.0,0.00024656,10]
[334024069,1722685835898,-150.0,0.00024656,10]
[334024070,1722685835907,-150.0,0.00024656,10]
[334024071,1722685835917,-150.0,0.00024656,10]
[334024072,1722685835926,-150.0,0.00024656,10]
[334024073,1722685835935,-150.0,0.00024656,10]
[334024074,1722685835944,-150.0,0.00024656,10]
[334024075,1722685835953,-150.0,0.00024656,10]
[334024076,1722685835962,-150.0,0.00024656,10]
[334024077,1722685835971,-150.0,0.00024656,10]
[334024078,1722685835980,-150.0,0.00024656,10]
[334024079,1722685835990,-150.0,0.00024656,10]
[334024080,1722685835999,-150.0,0.00024656,10]
[334024081,1722685836008,-150.0,0.00024656,10]
[334024082,1722685836017,-2402.24,0.00024657,4]
[334024083,1722685836026,-500.0,0.00024657,9]
[334024084,1722685836036,-500.0,0.00024657,9]
[334024085,1722685836045,-500.0,0.00024657,9]
[334024086,1722685836054,-500.0,0.00024657,9]
[334024087,1722685836063,-500.0,0.00024657,9]
[334024088,1722685836073,-500.0,0.00024657,9]
[334024089,1722685836085,-500.0,0.00024657,9]
[334024090,1722685836095,-500.0,0.00024657,9]
[334024091,1722685836104,-500.0,0.00024657,9]
[334024092,1722685836113,-500.0,0.00024657,9]
[334024093,1722685836123,-500.0,0.00024657,9]
[334024094,1722685836133,-500.0,0.00024657,9]
[334024095,1722685836143,-500.0,0.00024657,9]
[334024096,1722685836152,-500.0,0.00024657,9]
[334024097,1722685836161,-500.0,0.00024657,9]
[334024098,1722685836171,-228.09229327,0.00024657,9]
[334024099,1722685836181,-500.0,0.00024657,9]
[334024100,1722685836190,-1747.85,0.00024657,9]
[334024101,1722685836200,-1747.85,0.00024657,9]
[334024102,1722685836210,-1747.85,0.00024657,9]
[334024103,1722685836219,-1747.85,0.00024657,9]
[334024104,1722685836228,-1747.85,0.00024657,9]
[334024105,1722685836237,-1747.85,0.00024657,9]
[334024106,1722685836246,-1747.85,0.00024657,9]
[334024107,1722685836255,-1747.85,0.00024657,9]
[334024108,1722685836264,-1747.85,0.00024657,9]
[334024109,1722685836273,-1747.85,0.00024657,9]
[334024110,1722685836282,-1747.85,0.00024657,9]
[334024111,1722685836291,-1747.85,0.00024657,9]
[334024112,1722685836300,-1747.85,0.00024657,9]
[334024113,1722685836309,-1747.85,0.00024657,9]
[334024114,1722685836318,-1747.85,0.00024657,9]
[334024115,1722685836329,-1747.85,0.00024657,9]
[334024116,1722685836340,-500.0,0.00024657,9]
[334024117,1722685836349,-500.0,0.00024657,9]
[334024118,1722685836358,-500.0,0.00024657,9]
[334024119,1722685836367,-500.0,0.00024657,9]
[334024120,1722685836377,-500.0,0.00024657,9]
[334024121,1722685836387,-500.0,0.00024657,9]
[334024122,1722685836396,-500.0,0.00024657,9]
[334024123,1722685836406,-500.0,0.00024657,9]
[334024124,1722685836415,-500.0,0.00024657,9]
[334024125,1722685836425,-500.0,0.00024657,9]
[334024126,1722685836434,-516.75262175,0.00024657,9]
[334024127,1722685836444,-500.0,0.00024657,9]
[334024128,1722685836454,-500.0,0.00024657,9]
[334024129,1722685836463,-500.0,0.00024657,9]
[334024130,1722685836472,-520.81,0.00024657,9]
[334024131,1722685836482,-520.81,0.00024657,9]
[334024132,1722685836491,-520.81,0.00024657,9]
[334024133,1722685836501,-463.92758629,0.00024657,9]
[334024134,1722685836511,-1767.75,0.00024657,9]
[334024135,1722685836521,-1767.75,0.00024657,9]